{"text_format":"1","workbook":"xlsx","n_sheets":2,"sheets":["コアカリ対応表","備考"],"not_rendered":{"charts":0,"images":0,"macros":1,"external_links":0,"defined_names":0,"comments":0,"pivot_tables":0},"unopened":[],"bounds":{"document_bytes":16777216,"sheet_cells":100000,"rows_first":2000,"rows_last":500,"rows_between":2000,"halvings":0,"cell_chars":16384,"cell_head_chars":4096},"cells_cut":0,"cells_raw":0,"read":"whole","date_system":"1900"}

{"sheet":"コアカリ対応表","index":0,"n_rows":103,"n_cols":252,"rows_kept":103,"cut":false,"hidden":false,"merged":[[5,7,8,7],[5,8,5,23],[6,8,6,10],[6,11,6,12],[6,14,6,15],[6,17,6,19],[6,20,6,21],[6,24,6,32],[6,33,6,34],[5,24,5,36],[6,37,6,38],[6,39,6,43],[6,47,6,52],[6,53,6,60],[5,37,5,60],[6,61,6,64],[6,65,6,68],[6,44,6,46],[6,106,6,109],[6,110,6,113],[6,114,6,117],[6,118,6,120],[5,61,5,120],[6,97,6,101],[6,85,6,88],[6,73,6,76],[6,81,6,84],[6,77,6,80],[6,89,6,92],[6,93,6,96],[6,102,6,105],[6,69,6,72],[6,248,6,251],[6,207,6,243],[5,206,5,251],[6,122,6,125],[6,131,6,133],[6,126,6,130],[6,137,6,140],[6,141,6,144],[5,121,5,146],[6,147,6,183],[6,184,6,199],[6,200,6,205],[5,147,5,205],[6,244,6,247],[5,4,8,4],[5,5,8,5],[5,6,8,6],[5,0,8,0],[5,1,8,1],[5,2,8,2],[5,3,8,3]]}
["2020年度シラバス　モデルコアカリキュラム対応一覧"]
[]
[null,null,null,null,"項目",null,"A-1-1)"]
[]
[]
[null,"学部","分野","学習段階","学年","連番","科目名","担当教室","A 医師として求められる基本的な資質・能力",null,null,null,null,null,null,null,null,null,null,null,null,null,null,null,"B 社会と医学・医療",null,null,null,null,null,null,null,null,null,null,null,null,"C 医学一般",null,null,null,null,null,null,null,null,null,null,null,null,null,null,null,null,null,null,null,null,null,null,null,"D 人体各器官の正常構造と機能、病態、診断、治療",null,null,null,null,null,null,null,null,null,null,null,null,null,null,null,null,null,null,null,null,null,null,null,null,null,null,null,null,null,null,null,null,null,null,null,null,null,null,null,null,null,null,null,null,null,null,null,null,null,null,null,null,null,null,null,null,null,null,null,"E 全身に及ぶ生理的変化、病態、診断、治療",null,null,null,null,null,null,null,null,null,null,null,null,null,null,null,null,null,null,null,null,null,null,null,null,null,"F 診療の基本",null,null,null,null,null,null,null,null,null,null,null,null,null,null,null,null,null,null,null,null,null,null,null,null,null,null,null,null,null,null,null,null,null,null,null,null,null,null,null,null,null,null,null,null,null,null,null,null,null,null,null,null,null,null,null,null,null,null,"G 臨床実習"]
[null,null,null,null,null,null,null,null,"A-1 プロフェッショナリズム",null,null,"A-2 医学知識と問題対応能力",null,"A-3 診療技能と患者ケア","A-4 コミュニケ－ション能力",null,"A-5 チ－ム医療の実践","A-6 医療の質と安全の管理",null,null,"A-7 社会における医療の実践",null,"A-8 科学的探究","A-9 生涯にわたって共に学ぶ姿勢","B-1 集団に対する医療",null,null,null,null,null,null,null,null,"B-2 法医学と関連法規",null,"B-3 医学研究と倫理","B-4 医療に関連のある社会科学領域","C-1 生命現象の科学",null,"C-2 個体の構成と機能",null,null,null,null,"C-3 個体の反応",null,null,"C-4 病因と病態",null,null,null,null,null,"C-5 人の行動と心理",null,null,null,null,null,null,null,"D-1 血液・造血器・リンパ系",null,null,null,"D-2 神経系",null,null,null,"D-3 皮膚系",null,null,null,"D-4 運動器（筋骨格）系",null,null,null,"D-5 循環器系",null,null,null,"D-6 呼吸器系",null,null,null,"D-7 消化器系",null,null,null,"D-8 腎・尿路系（体液・電解質バランスを含む）",null,null,null,"D-9 生殖機能",null,null,null,"D-10 妊娠と分娩",null,null,null,null,"D-11 乳房",null,null,null,"D-12 内分泌・栄養・代謝系",null,null,null,"D-13 眼・視覚系",null,null,null,"D-14 耳鼻・咽喉・口腔系",null,null,null,"D-15 精神系",null,null,"E-1 遺伝医療・ゲノム医療","E-2 感染症",null,null,null,"E-3 腫瘍",null,null,null,null,"E-4 免疫・アレルギー",null,null,"E-5 物理・化学的因子による疾患",null,null,"E-6 放射線の生体影響と放射線障害",null,null,null,"E-7 成長と発達",null,null,null,"E-8 加齢と老化","E-9 人の死","F-1 症候・病態からのアプローチ",null,null,null,null,null,null,null,null,null,null,null,null,null,null,null,null,null,null,null,null,null,null,null,null,null,null,null,null,null,null,null,null,null,null,null,null,"F-2 基本的診療知識",null,null,null,null,null,null,null,null,null,null,null,null,null,null,null,"F-3 基本的診療技能",null,null,null,null,null,"G-1 診療の基本","G-2 臨床推論",null,null,null,null,null,null,null,null,null,null,null,null,null,null,null,null,null,null,null,null,null,null,null,null,null,null,null,null,null,null,null,null,null,null,null,null,"G-3 基本的臨床手技",null,null,null,"G-4 診療科臨床実習"]
[null,null,null,null,null,null,null,null,"A-1-1)","A-1-2)","A-1-3)","A-2-1)","A-2-2)","A-3-1)","A-4-1)","A-4-2)","A-5-1)","A-6-1)","A-6-2)","A-6-3)","A-7-1)","A-7-2)","A-8-1)","A-9-1)","B-1-1)","B-1-2)","B-1-3)","B-1-4)","B-1-5)","B-1-6)","B-1-7)","B-1-8)","B-1-9)","B-2-1)","B-2-2)","B-3-1)","B-4-1)","C-1-1)","C-1-2)","C-2-1)","C-2-2)","C-2-3)","C-2-4)","C-2-5)","C-3-1)","C-3-2)","C-3-3)","C-4-1)","C-4-2)","C-4-3)","C-4-4)","C-4-5)","C-4-6)","C-5-1)","C-5-2)","C-5-3)","C-5-4)","C-5-5)","C-5-6)","C-5-7)","C-5-8)","D-1-1)","D-1-2)","D-1-3)","D-1-4)","D-2-1)","D-2-2)","D-2-3)","D-2-4)","D-3-1)","D-3-2)","D-3-3)","D-3-4)","D-4-1)","D-4-2)","D-4-3)","D-4-4)","D-5-1)","D-5-2)","D-5-3)","D-5-4)","D-6-1)","D-6-2)","D-6-3)","D-6-4)","D-7-1)","D-7-2)","D-7-3)","D-7-4)","D-8-1)","D-8-2)","D-8-3)","D-8-4)","D-9-1)","D-9-2)","D-9-3)","D-9-4)","D-10-1)","D-10-2)","D-10-3)","D-10-4)","D-10-5)","D-11-1)","D-11-2)","D-11-3)","D-11-4)","D-12-1)","D-12-2)","D-12-3)","D-12-4)","D-13-1)","D-13-2)","D-13-3)","D-13-4)","D-14-1)","D-14-2)","D-14-3)","D-14-4)","D-15-1)","D-15-2)","D-15-3)","E-1-1)","E-2-1)","E-2-2)","E-2-3)","E-2-4)","E-3-1)","E-3-2)","E-3-3)","E-3-4)","E-3-5)","E-4-1)","E-4-2)","E-4-3)","E-5-1)","E-5-2)","E-5-3)","E-6-1)","E-6-2)","E-6-3)","E-6-4)","E-7-1)","E-7-2)","E-7-3)","E-7-4)","E-8-1)","E-9-1)","F-1-1)","F-1-2)","F-1-3)","F-1-4)","F-1-5)","F-1-6)","F-1-7)","F-1-8)","F-1-9)","F-1-10)","F-1-11)","F-1-12)","F-1-13)","F-1-14)","F-1-15)","F-1-16)","F-1-17)","F-1-18)","F-1-19)","F-1-20)","F-1-21)","F-1-22)","F-1-23)","F-1-24)","F-1-25)","F-1-26)","F-1-27)","F-1-28)","F-1-29)","F-1-30)","F-1-31)","F-1-32)","F-1-33)","F-1-34)","F-1-35)","F-1-36)","F-1-37)","F-2-1)","F-2-2)","F-2-3)","F-2-4)","F-2-5)","F-2-6)","F-2-7)","F-2-8)","F-2-9)","F-2-10)","F-2-11)","F-2-12)","F-2-13)","F-2-14)","F-2-15)","F-2-16)","F-3-1)","F-3-2)","F-3-3)","F-3-4)","F-3-5)","F-3-6)","G-1-1)","G-2-1)","G-2-2)","G-2-3)","G-2-4)","G-2-5)","G-2-6)","G-2-7)","G-2-8)","G-2-9)","G-2-10)","G-2-11)","G-2-12)","G-2-13)","G-2-14)","G-2-15)","G-2-16)","G-2-17)","G-2-18)","G-2-19)","G-2-20)","G-2-21)","G-2-22)","G-2-23)","G-2-24)","G-2-25)","G-2-26)","G-2-27)","G-2-28)","G-2-29)","G-2-30)","G-2-31)","G-2-32)","G-2-33)","G-2-34)","G-2-35)","G-2-36)","G-2-37)","G-3-1)","G-3-2)","G-3-3)","G-3-4)","G-4-1)","G-4-2)","G-4-3)","G-4-4)"]
[null,null,null,null,null,null,null,null,"医の倫理と生命倫理","患者中心の視点","医師としての責務と裁量権","課題探求・解決能力","学修の在り方","全人的実践的能力","コミュニケーション","患者と医師の関係","患者中心のチーム医療","安全性の確保","医療上の事故等への対処と予防","医療従事者の健康と安全","地域医療への貢献","国際医療への貢献","医学研究への志向の涵養","生涯学習への準備","統計の基礎","統計手法の適用","根拠に基づいた医療<EBM>","疫学と予防医学","生活習慣とリスク","社会・環境と健康","地域医療・地域保健","保健・医療・福祉・介護の制度","国際保健","死と法","診療情報と諸証明書","倫理規範と実践倫理","医師に求められる社会性","生命の最小単位－細胞","生物の進化","細胞の構成と機能","組織・各臓器の構成、機能と位置関係","個体の調節機能とホメオスタシス","個体の発生","生体物質の代謝","生体と微生物","免疫と生体防御","生体と薬物","遺伝的多様性と疾患","細胞障害・変性と細胞死","代謝障害","循環障害、臓器不全","炎症と創傷治癒","腫瘍","人の行動","行動の成り立ち","動機付け","ストレス","生涯発達","個人差","対人関係と対人コミュニケーション","行動変容における理論と技法","構造と機能","診断と検査の基本","症候","疾患","構造と機能","診断と検査の基本","症候","疾患","構造と機能","診断と検査の基本","症候","疾患","構造と機能","診断と検査の基本","症候","疾患","構造と機能","診断と検査の基本","症候","疾患","構造と機能","診断と検査の基本","症候","疾患","構造と機能","診断と検査の基本","症候","疾患","構造と機能","診断と検査の基本","症候","疾患","構造と機能","診断と検査の基本","症候","疾患","構造と機能","診断と検査の基本","症候","疾患","産科手術","構造と機能","診断と検査の基本","症候","疾患","構造と機能","診断と検査の基本","症候","疾患","構造と機能","診断と検査の基本","症候","疾患","構造と機能","診断と検査の基本","症候","疾患","診断と検査の基本","症候","疾患","遺伝医療・ゲノム医療と情報の特性","病態","診断・検査・治療の基本","症候","疾患","定義・病態","診断","治療","診療の基本的事項","各論","診断と検査の基本","症候","病態と疾患","診断と検査の基本","症候","疾患","生体と放射線","医療放射線と生体影響","放射線リスクコミュニケーション","放射線災害医療","胎児・新生児","乳幼児","小児期全般","思春期","老化と高齢者の特徴","生物的死と社会的死","発熱","全身倦怠感","食思(欲)不振","体重減少・体重増加","ショック","心停止","意識障害・失神","けいれん","めまい","脱水","浮腫","発疹","咳・痰","血痰・喀血","呼吸困難","胸痛","動悸","胸水","嚥下困難・障害","腹痛","悪心・嘔吐","吐血・下血","便秘・下痢","黄疸","腹部膨隆（腹水を含む）・腫瘤","貧血","リンパ節腫脹","尿量・排尿の異常","血尿・タンパク尿","月経異常","不安・抑うつ","もの忘れ","頭痛","運動麻痺・筋力低下","腰背部痛","関節痛・関節腫脹","外傷・熱傷","臨床推論","根拠に基づいた医療<EBM>","臨床検査","病理診断","放射線等を用いる診断と治療","内視鏡を用いる診断と治療","超音波を用いる診断と治療","薬物治療の基本原理","外科的治療と周術期管理","麻酔","食事・栄養療法と輸液療法","医療機器と人工臓器","輸血と移植","リハビリテーション","在宅医療と介護","緩和ケア","問題志向型システムと臨床診断推論","医療面接","診療録（カルテ）","臨床判断","身体診察","基本的臨床手技","臨床実習","発熱","全身倦怠感","食思(欲)不振","体重減少・体重増加","ショック","心停止","意識障害・失神","けいれん","めまい","脱水","浮腫","発疹","咳・痰","血痰・喀血","呼吸困難","胸痛","動悸","胸水","嚥下困難・障害","腹痛","悪心・嘔吐","吐血・下血","便秘・下痢","黄疸","腹部膨隆（腹水を含む）・腫瘤","貧血","リンパ節腫脹","尿量・排尿の異常","血尿・タンパク尿","月経異常","不安・抑うつ","もの忘れ","頭痛","運動麻痺・筋力低下","腰背部痛","関節痛・関節腫脹","外傷・熱傷","一般手技","検査手技","外科手技","救命処置","必ず経験すべき診療科","上記以外の診療科","地域医療実習","シミュレーション教育"]
[1,"MA","BAS",1,1,"00","統計学M","生物統計学",1,null,null,null,null,null,null,null,null,null,null,null,null,null,null,null,1,1]
[2,"MA","BAS",1,1,"01","医療倫理学","都営経営研究科",1,1,1,null,null,null,null,null,null,null,null,null,null,null,null,null,null,null,null,null,null,null,null,null,null,null,null,1]
[3,"MA","CLI",3,1,"02","医学序論　","教務委員会",null,null,null,null,null,null,1,1,null,null,null,null,null,null,null,null,null,null,null,null,null,null,null,null,null,1]
[4,"MA","BAS",1,1,"02","遺伝と遺伝子コース","分子病態学　他",null,null,null,null,null,null,null,null,null,null,null,null,null,null,null,null,null,null,null,null,null,null,null,null,null,null,null,null,null,1,null,null,null,null,null,1,null,null,null,1]
[5,"MA","BAS",1,1,"03","遺伝医学","分子病態学　他",null,null,null,null,null,null,null,null,null,null,null,null,null,null,null,null,null,null,null,null,null,null,null,null,null,null,null,null,null,1,null,null,null,null,null,null,null,null,null,1,null,null,null,null,null,null,null,null,null,null,null,null,null,null,null,null,null,null,null,null,null,null,null,null,null,null,null,null,null,null,null,null,null,null,null,null,null,null,null,null,null,null,null,null,null,null,null,null,null,null,null,null,null,null,null,null,null,null,null,null,null,null,null,null,null,null,null,null,null,null,null,null,null,1]
[6,"MA","BAS",1,1,"04","細胞と組織の基本構造と機能コース（組織）","機能細胞形態学　他",null,null,null,null,null,null,null,null,null,null,null,null,null,null,null,null,null,null,null,null,null,null,null,null,null,null,null,null,null,1,null,1,1]
[7,"MA","BAS",1,1,"05","発生学コース","第二解剖",null,null,null,null,null,null,null,null,null,null,null,null,null,null,null,null,null,null,null,null,null,null,null,null,null,null,null,null,null,null,null,null,null,null,1]
[8,"MA","CLI",3,1,"03","メディカル・データ・サイエンスⅠ","医療統計学　他",null,null,null,null,null,null,null,null,null,null,null,null,null,null,null,null,1,1,1]
[9,"MA","BAS",1,1,"06","基礎医学研究推進コース","教務委員会",null,null,null,null,null,null,null,null,null,null,null,null,null,null,1,1]
[10,null,null,null,1,null,"物理学の臨床医学への応用","放射線診断学・IVR学　他"]
[11,"MA","CLI",3,1,"04","早期臨床実習Ⅰ（Early　Exposure）","教務委員会",null,null,null,null,null,null,null,null,1]
[12,"MA","CLI",3,1,"05","早期臨床医学入門","教務委員会",null,null,null,null,null,null,null,null,1]
[13,"MA","CLI",3,1,"05","早期診療所実習","教務委員会",null,null,null,null,null,null,null,null,null,null,null,null,null,null,null,null,null,null,null,null,null,null,null,null,null,null,null,null,null,null,null,null,null,null,null,null,null,null,null,null,null,null,null,null,null,null,null,null,null,null,null,null,null,null,null,null,null,null,null,null,null,null,null,null,null,null,null,null,null,null,null,null,null,null,null,null,null,null,null,null,null,null,null,null,null,null,null,null,null,null,null,null,null,null,null,null,null,null,null,null,null,null,null,null,null,null,null,null,null,null,null,null,null,null,null,null,null,null,null,null,null,null,null,null,null,null,null,null,null,null,null,null,null,null,null,null,null,null,null,null,null,null,null,null,null,null,null,null,null,null,null,null,null,null,null,null,null,null,null,null,null,null,null,null,null,null,null,null,null,null,null,null,null,null,null,null,null,null,null,null,null,null,null,null,null,null,null,null,null,null,null,null,null,null,null,null,null,null,null,null,null,null,null,null,null,null,null,null,null,null,null,null,null,null,null,null,null,null,null,null,null,null,null,null,null,null,null,null,null,null,null,null,null,null,null,null,null,null,null,null,null,null,1]
[14,"MA","CLI",3,1,"01","心肺蘇生法実習","教務委員会",null,null,null,null,1,null,null,null,null,null,null,null,null,null,null,null,null,null,null,null,null,null,null,null,null,null,null,null,null,null,null,null,null,null,null,null,null,null,null,null,null,null,null,null,null,null,null,null,null,null,null,null,null,null,null,null,null,null,null,null,null,null,null,null,null,null,null,null,null,null,null,null,null,null,null,null,null,null,null,null,null,null,null,null,null,null,null,null,null,null,null,null,null,null,null,null,null,null,null,null,null,null,null,null,null,null,null,null,null,null,null,null,null,null,null,null,null,null,null,null,null,null,null,null,null,null,null,null,null,null,null,null,null,null,null,null,null,null,null,null,null,null,null,null,null,null,null,null,null,null,null,null,null,null,null,null,null,null,null,null,null,null,null,null,null,null,null,null,null,null,null,null,null,null,null,null,null,null,null,null,null,null,null,null,null,null,null,null,null,null,null,null,null,null,null,null,null,null,null,null,null,null,null,null,null,null,null,null,null,null,null,null,null,null,null,null,null,null,null,null,null,null,null,null,null,null,null,null,null,null,null,null,null,null,null,null,null,null,null,1,null,null,null,1]
[15,"MA","BAS",1,2,"01","生体物質代謝・生化学コース (生化)","細胞機能制御学",null,null,null,null,null,null,null,null,null,null,null,null,null,null,null,null,null,null,null,null,null,null,null,null,null,null,null,null,null,null,null,null,null,1,null,1,null,null,null,1,1,1]
[16,"MA","BAS",1,2,"02","医学史","第二解剖",1]
[17,"MA","BAS",1,2,"19","医学英語論文の読み方","産業医学　他",null,null,null,null,1,null,null,null,null,null,null,null,null,null,1,null,null,null,1]
[18,"MA","BAS",1,2,"03","細胞生物学コース (細胞) ","細胞機能制御学　他",null,null,null,null,null,null,null,null,null,null,null,null,null,null,null,null,null,null,null,null,null,null,null,null,null,null,null,null,null,1,null,1,null,1,null,null,null,null,null,1,1,1]
[19,"MA","BAS",1,2,"04","運動器系コース (運動器) ",null,null,null,null,null,null,null,null,null,null,null,null,null,null,null,null,null,null,null,null,null,null,null,null,null,null,null,null,null,null,null,null,null,null,null,null,null,null,null,null,null,null,null,null,null,null,null,null,null,null,null,null,null,null,null,null,null,null,null,null,null,null,null,null,null,null,1]
[20,"MA","BAS",1,2,"05","血液・造血器系コース (血液) ","病態生理学",null,null,null,null,null,null,null,null,null,null,null,null,null,null,null,null,null,null,null,null,null,null,null,null,null,null,null,null,null,null,null,null,1,null,null,null,null,null,null,null,null,null,null,null,null,null,null,null,null,null,null,null,null,1,1]
[21,"MA","BAS",1,2,"06","循環器系コース (循環) 　","神経生理学　他",null,null,null,null,null,null,null,null,null,null,null,null,null,null,null,null,null,null,null,null,null,null,null,null,null,null,null,null,null,null,null,null,null,null,null,null,null,null,null,null,null,null,null,null,null,null,null,null,null,null,null,null,null,null,null,null,null,null,null,null,null,null,null,null,null,null,null,null,null,1]
[22,"MA","BAS",1,2,"07","神経解剖コース","機能細胞形態学　他",null,null,null,null,null,null,null,null,null,null,null,null,null,null,null,null,null,null,null,null,null,null,null,null,null,null,null,null,null,null,null,null,null,null,null,null,null,null,null,null,null,null,null,null,null,null,null,null,null,null,null,null,null,null,null,null,null,1]
[23,"MA","BAS",1,2,"08","脳機能系コース","神経生理学　他",null,null,null,null,null,null,null,null,null,null,null,null,null,null,null,null,null,null,null,null,null,null,null,null,null,null,null,null,null,null,null,null,null,1,null,null,null,null,null,null,null,null,null,null,null,1,1,1,1,1,null,null,null,null,null,null,null,1,null,null,null,null,null,null,null,null,null,null,null,null,null,null,null,null,null,null,null,null,null,null,null,null,null,null,null,null,null,null,null,null,null,null,null,null,null,null,null,null,null,null,null,null,1,null,null,null,1]
[24,"MA","BAS",1,2,"09","分子系実習　",null,null,null,null,null,null,null,null,null,null,null,null,null,null,null,null,null,null,null,null,null,null,null,null,null,null,null,null,null,null,null,null,null,null,1,null,1,null,null,null,1,1,1]
[25,"MA","BAS",1,2,"10","呼吸器系コース (呼吸) 　","運動生体医学　他",null,null,null,null,null,null,null,null,null,null,null,null,null,null,null,null,null,null,null,null,null,null,null,null,null,null,null,null,null,null,null,null,null,null,null,null,null,null,null,null,null,null,null,null,null,null,null,null,null,null,null,null,null,null,null,null,null,null,null,null,null,null,null,null,null,null,null,null,null,null,null,null,null,1]
[26,"MA","BAS",1,2,"11","免疫系コース (免疫) ","ゲノム免疫学　他",null,null,null,null,null,null,null,null,null,null,null,null,null,null,null,null,null,null,null,null,null,null,null,null,null,null,null,null,null,null,null,null,null,null,null,null,null,1]
[27,"MA","BAS",1,2,"12","消化器系コース (消化器)　 ","病態生理学　他",null,null,null,null,null,null,null,null,null,null,null,null,null,null,null,null,null,null,null,null,null,null,null,null,null,null,null,null,null,null,null,null,null,null,null,null,null,null,null,null,null,null,null,null,null,null,null,null,null,null,null,null,null,null,null,null,null,null,null,null,null,null,null,null,null,null,null,null,null,null,null,null,null,null,null,null,null,1]
[28,"MA","BAS",1,2,"13","感覚器・皮膚コース (感覚皮膚) 　","機能細胞形態学　他",null,null,null,null,null,null,null,null,null,null,null,null,null,null,null,null,null,null,null,null,null,null,null,null,null,null,null,null,null,null,null,null,null,null,null,null,null,null,null,null,null,null,null,null,null,null,null,null,null,null,null,null,null,null,null,null,null,null,null,null,null,1,null,null,null,null,null,null,null,null,null,null,null,null,null,null,null,null,null,null,null,null,null,null,null,null,null,null,null,null,null,null,null,null,null,null,null,null,null,null,null,null,1,null,null,null,1]
[29,"MA","BAS",1,2,"14","内分泌・代謝コース (内分泌・代謝)　","病態生理学　他",null,null,null,null,null,null,null,null,null,null,null,null,null,null,null,null,null,null,null,null,null,null,null,null,null,null,null,null,null,null,null,null,null,1]
[30,"MA","BAS",1,2,"15","腎・泌尿器系コース (腎泌尿器)　 ","病態生理学　他",null,null,null,null,null,null,null,null,null,null,null,null,null,null,null,null,null,null,null,null,null,null,null,null,null,null,null,null,null,null,null,null,null,null,null,null,null,null,null,null,null,null,null,null,null,null,null,null,null,null,null,null,null,null,null,null,null,null,null,null,null,null,null,null,null,null,null,null,null,null,null,null,null,null,null,null,null,null,null,null,null,1]
[31,"MA","BAS",1,2,"16","生殖器系コース (生殖) ","細胞機能形態学　他",null,null,null,null,null,null,null,null,null,null,null,null,null,null,null,null,null,null,null,null,null,null,null,null,null,null,null,null,null,null,null,null,null,null,null,null,null,null,null,null,null,null,null,null,null,null,null,null,null,null,null,null,null,null,null,null,null,null,null,null,null,null,null,null,null,null,null,null,null,null,null,null,null,null,null,null,null,null,null,null,null,null,null,null,null,1]
[32,"MA","BAS",1,2,"17","肉眼解剖学（マクロ）実習  ","細胞機能形態学　他"]
[33,"MA","BAS",1,2,"18","機能系実習 　 ","病態生理学　他"]
[34,"MA","CLI",3,2,"01","コミュニケーション 　","総合医学教育学"]
[35,"MA","CLI",3,2,"02","早期臨床実習Ⅱ（Second　Exposure）",null,null,null,null,null,null,null,1,1,1]
[36,null,null,null,null,null,"生体と薬物コース","分子病態薬理学　他",null,null,null,null,null,null,null,null,null,1,null,null,null,null,null,null,null,null,null,null,null,null,null,null,null,null,null,null,null,null,null,null,null,null,null,null,null,null,1,null,null,null,null,null,null,null,null,null,null,null,null,null,null,null,null,null,1,null,null,null,1,null,null,null,1,null,null,null,1,null,null,null,1,null,null,null,1,null,null,null,1,null,null,null,1,null,null,null,1,null,null,null,1,null,null,null,null,1,null,null,null,1,null,null,null,1,null,null,null,1,null,null,1,null,null,null,null,null,null,null,null,null,null,null,null,1,null,null,null,null,null,null,null,null,null,null,null,null,null,null,null,null,null,null,null,null,null,null,null,null,null,null,null,null,null,null,null,null,null,null,null,null,null,null,null,null,null,null,null,null,null,null,null,null,null,null,null,null,null,null,null,null,null,1]
[37,null,null,null,null,null,"原因と病態１コース　","分子病理学　他",null,null,null,null,null,null,null,null,null,null,null,null,null,null,null,null,null,null,null,null,1,1,null,null,null,null,null,null,null,null,null,null,null,null,null,null,null,1,null,1,null,1,null,null,1,null,null,null,null,null,null,null,null,null,null,null,null,null,null,null,null,null,null,null,null,1,null,null,1,null,null,null,null,null,null,null,null,null,null,null,null,1,null,null,1,null,null,null,null,null,null,null,null,null,null,null,null,null,1,null,null,1,null,null,null,null,null,null,null,null,null,null,null,null,null,null,null,null,1,null,null,null,1,null,null,null,null,null,1,null,null,null,null,null,null,null,null,null,null,null,null,null,null,null,null,null,null,null,null,null,null,null,null,null,null,null,null,null,null,null,null,null,null,null,null,null,null,null,null,null,null,null,null,null,null,null,null,null,null,1]
[38,null,null,null,null,null,"原因と病態２コース ","診断病理・病理病態学　他",null,null,null,null,null,null,null,null,null,null,null,null,null,null,null,null,null,null,null,null,null,null,null,null,null,null,null,null,null,null,null,null,null,null,null,null,null,null,null,null,1,1,1,1]
[39,null,null,null,null,null,"細菌・真菌感染症コース　","細菌学　他",null,null,null,null,null,null,null,null,null,1,null,null,null,null,null,null,null,null,null,null,null,null,null,1,null,null,null,null,null,null,null,null,null,null,null,null,1,1]
[40,null,null,null,null,null,"ウイルス感染症コース　","細菌学　他",null,null,null,null,null,null,null,null,null,1,null,null,null,null,null,null,null,null,null,null,null,null,null,1,null,null,null,null,null,null,null,null,null,null,null,null,1,1]
[41,null,null,null,null,null,"メディカル・データ・サイエンス ","医療統計学　他",null,null,null,null,null,null,null,null,null,null,null,null,null,null,null,null,1,1,1]
[42,null,null,null,null,null,"医学英語　 ",null,null,null,null,null,1]
[43,"MA","BAS",1,3,"01","生体と薬物コース(※)　 ","分子病態薬理学　他",null,null,null,null,null,null,null,null,null,1,null,null,null,null,null,null,null,null,null,null,null,null,null,null,null,null,null,null,null,null,null,null,null,null,null,null,null,null,1,null,null,null,null,null,null,null,null,null,null,null,null,null,null,null,null,null,1,null,null,null,1,null,null,null,1,null,null,null,1,null,null,null,1,null,null,null,1,null,null,null,1,null,null,null,1,null,null,null,1,null,null,null,1,null,null,null,null,1,null,null,null,1,null,null,null,1,null,null,null,1,null,null,1,null,null,null,null,null,null,null,null,null,null,null,null,1,null,null,null,null,null,null,null,null,null,null,null,null,null,null,null,null,null,null,null,null,null,null,null,null,null,null,null,null,null,null,null,null,null,null,null,null,null,null,null,null,null,null,null,null,null,null,null,null,null,null,null,null,null,null,null,null,null,1]
[44,"MA","BAS",1,3,"02","原因と病態１コース　(※)","分子病理学　他",null,null,null,null,null,null,null,null,null,null,null,null,null,null,null,null,null,null,null,null,null,null,null,null,null,null,null,null,null,null,null,null,null,null,null,null,null,null,null,null,null,null,null,null,null,null,null,null,null,null,null,null,null,null,null,null,null,1,null,1,1,null,null,null,null,null,null,null,null,null,null,null,null,null,null,null,null,1,null,null,1,null,null,null,null,1,null,null,1,null,null,null,null,null,null,null,null,null,null,null,null,null,null,null,null,null,null,null,null,null,null,null,null,null,null,null,null,null,null,null,null,null,1,null,null,null,null,null,null,null,null,null,null,1,1,1,null,null,null,null,null,null,null,null,null,null,null,null,null,null,null,null,null,null,null,null,null,null,null,null,null,null,null,null,null,null,null,null,null,null,null,null,null,null,null,null,null,null,null,1]
[45,"MA","BAS",1,3,"03","原因と病態２コース(※)　","診断病理・病理病態学　他",null,null,null,null,null,null,null,null,null,null,null,null,null,null,null,null,null,null,null,null,null,null,null,null,null,null,null,null,null,null,null,null,null,null,null,null,null,null,null,null,1,1,1,1]
[46,"MA","BAS",1,3,"04","細菌・真菌感染症コース(※)　","細菌学　他",null,null,null,null,null,null,null,null,null,1,null,null,null,null,null,null,null,null,null,null,null,null,null,1,null,null,null,null,null,null,null,null,null,null,null,null,1,1]
[47,"MA","BAS",1,3,"06","原虫・寄生虫感染症コース　","寄生虫学　他",null,null,null,null,null,null,null,null,null,null,null,null,null,1,1,null,null,null,null,null,null,null,null,1,1,null,null,null,null,null,1,null,null,null,null,null,1,1]
[48,"MA","SOC",2,3,"01","産業医学Ⅰ　 ","産業医学　他",null,null,null,null,1,null,null,1,1,null,null,1,null,null,1,null,null,1,1,1,1,1,1,1,null,null,null,null,1,null,null,null,null,null,null,null,null,null,1,null,null,null,null,null,null,null,null,null,1,null,null,null,null,null,null,null,null,null,null,null,null,null,null,null,null,null,null,null,null,null,null,null,null,null,null,null,1,null,null,null,null,null,null,null,null,null,null,null,null,null,null,null,null,null,null,null,null,null,null,null,null,null,null,null,null,null,null,null,null,null,null,null,null,null,null,null,null,null,null,null,null,null,null,null,null,null,null,null,1,1,1,null,1,null,null,null,null,null,null,null,null,null,null,null,null,null,null,null,null,null,null,null,null,null,null,null,null,null,null,null,null,null,null,null,null,null,null,null,null,null,null,null,null,null,null,null,null,1,1]
[49,"MA","SOC",2,3,"02","公衆衛生学Ⅰ","公衆衛生学　他",null,null,null,null,null,null,null,null,1,null,null,null,null,null,1,1,null,null,null,null,null,null,null,null,null,null,null,1,1]
[50,"MA","CLI",3,3,"02","メディカル・データ・サイエンス ","医療統計学　他",null,null,null,null,null,null,null,null,null,null,null,null,null,null,null,null,1,1,1]
[51,"MA","BAS",1,3,"07","医学英語(※)",null,null,null,null,null,1]
[52,"MA","BAS",1,3,"08","修業実習 ","細菌学　他"]
[53,"MA","CLI",3,3,"01","早期臨床実習Ⅲ(Third Experience) ","教務委員会",null,null,null,null,null,1,1,1,1]
[54,"MA","SOC",2,4,"01","産業医学Ⅱ","産業医学　他",null,null,null,null,1,null,null,1,1,null,null,null,null,null,1,null,null,1,1,1,1,1,null,1,null,null,null,null,1,null,null,null,null,null,null,null,null,null,null,null,null,null,null,null,null,null,null,null,1,null,null,null,null,null,null,null,null,null,null,null,null,null,null,null,null,null,null,null,null,null,null,null,null,null,null,null,null,null,null,null,null,null,null,null,null,null,null,null,null,null,null,null,null,null,null,null,null,null,null,null,null,null,null,null,null,null,null,null,null,null,null,null,null,null,null,null,null,null,null,null,null,null,null,null,null,null,null,null,null,null,null,null,null,null,null,null,null,null,null,null,null,null,null,null,null,null,null,null,null,null,null,null,null,null,null,null,null,null,null,null,null,null,null,null,null,null,null,null,null,null,null,null,null,null,null,null,null,1,1]
[55,"MA","SOC",2,4,"02","公衆衛生学 Ⅱ","公衆衛生学　他",null,null,null,null,null,null,null,null,1,null,null,null,null,null,1,1,null,null,null,null,null,null,null,null,null,null,null,1,1]
[56,"MA","SOC",2,4,"03","法医学　 ","法医学　他",null,null,null,null,null,null,null,null,null,null,null,null,1,null,null,null,null,null,null,null,null,null,null,null,null,1,1]
[57,"MA","CLI",3,4,"01","ユニット型臨床臓器別講義総論　","教務委員会",null,null,null,null,null,null,null,null,null,null,null,null,null,null,null,null,null,null,null,null,null,null,null,null,null,null,null,null,null,null,null,null,null,null,null,null,null,null,null,null,null,null,null,null,null,1,1,1,1,1,1,1,1,1,1,1,1,1,1,1,1,1,1,1,1,1,1,1,1,1,1,1,1,1,1,1,1,1,1,1,1,1,1,1,1,1,1,1,1,1,1,1,1,1,1,1,1,1,1,1,1,1,1,1,1,1,1,1,1,1,1,1,1,1,1,1,1,1,1,1,1,1,1,1,1,1,1,1,1,1,1,1,1,1,1,1,1,1,1,1,1,1,1,1,1,1,1,1,1,1,1,1,1,1,1,1,1,1,1,1,1,1,1,1,1,1,1,1,1,1,1,1,1,1,1,1,1,1,1,1,1,1,1,1,1,1,1,1,1,1,1,1]
[58,"MA","CLI",3,4,"02","臨床スターター実習(OSCE)　",null,1,1,1,1,1,1,1,1,null,1,1,1,null,null,null,1,null,null,null,null,null,null,null,null,null,null,null,null,null,null,null,null,null,null,null,null,null,null,null,null,null,null,null,null,null,null,null,null,null,null,null,null,null,null,null,null,null,null,null,null,null,null,null,null,null,null,null,null,null,null,null,null,null,null,null,null,null,null,null,null,null,null,null,null,null,null,null,null,null,null,null,null,null,null,null,null,null,null,null,null,null,null,null,null,null,null,null,null,null,null,null,null,null,null,null,null,null,null,null,null,null,null,null,null,null,null,null,null,null,null,null,null,null,null,null,null,null,null,null,null,null,null,null,null,null,null,null,null,null,null,null,null,null,null,null,null,null,null,null,null,null,null,null,null,null,null,null,null,null,null,null,null,null,null,null,null,1,1,1,1,1,1,1,1,1,1,1,1,1,1,1,1,1,1,1,1,1,1,null,null,null,null,null,null,null,null,null,null,null,null,null,null,null,null,null,null,null,null,null,null,null,null,null,null,null,null,null,null,null,null,null,null,null,null,null,null,1,1,1,1]
[59,null,null,null,4,null,"プライマリケア医学コース",null,1,1,1,1,1,1,1,1,1,1,1,1,1,1,1,1,null,null,null,null,null,null,null,null,null,null,null,null,null,null,null,null,null,null,null,null,null,null,null,null,null,null,null,null,null,null,null,null,null,null,null,null,null,null,null,null,null,null,null,null,null,null,null,null,null,null,null,null,null,null,null,null,null,null,null,null,null,null,null,null,null,null,null,null,null,null,null,null,null,null,null,null,null,null,null,null,null,null,null,null,null,null,null,null,null,null,null,null,null,null,null,null,null,null,null,null,null,null,null,null,null,null,null,null,null,null,null,null,null,null,null,null,null,null,null,null,null,null,null,1,1,1,1,1,1,1,1,1,1,1,1,1,1,1,1,1,1,1,1,1,1,1,1,1,1,1,1,1,1,1,1,1,1,1,1,1,1,1,1,1,1,1,1,1,1,1,1,1,1,1,1,1]
[60,null,null,null,4,null,"外来型CC ",null,1,1,1,1,1,1,1,1,1,1,1,1,1,1,1,1,null,null,null,null,null,null,null,null,null,null,null,null,null,null,null,null,null,null,null,null,null,null,null,null,null,null,null,null,null,null,null,null,null,null,null,null,null,null,null,null,null,null,null,null,null,null,null,null,null,null,null,null,null,null,null,null,null,null,null,null,null,null,null,null,null,null,null,null,null,null,null,null,null,null,null,null,null,null,null,null,null,null,null,null,null,null,null,null,null,null,null,null,null,null,null,null,null,null,null,null,null,null,null,null,null,null,null,null,null,null,null,null,null,null,null,null,null,null,null,null,null,null,null,1,1,1,1,1,1,1,1,1,1,1,1,1,1,1,1,1,1,1,1,1,1,1,1,1,1,1,1,1,1,1,1,1,1,1,1,1,1,1,1,1,1,1,1,1,1,1,1,1,1,1,1,1,1,1,1,1,1,1,1,1,1,1,1,1,1,1,1,1,1,1,1,1,1,1,1,1,1,1,1,1,1,1,1,1,1,1,1,1,1,1,1,1,1,1,1,1,1,1,1,1,1,1,1,1]
[61,null,null,null,4,null,"漢方医学入門","核医学　他",null,null,null,null,null,null,null,null,null,null,null,null,null,null,null,null,null,null,null,null,null,null,null,null,null,null,null,null,null,null,null,null,null,null,null,null,null,null,null,null,null,null,null,null,null,null,null,null,null,null,null,null,null,null,null,null,null,null,null,null,null,null,null,null,null,null,null,null,null,null,null,null,null,null,null,null,null,null,null,null,null,null,null,null,null,null,null,null,null,null,null,null,null,null,null,null,null,null,null,null,null,null,null,null,null,null,null,null,null,null,null,null,null,null,null,null,null,null,null,null,null,null,null,null,null,null,null,null,null,null,null,null,null,null,null,null,null,null,null,null,null,null,null,null,null,null,null,null,null,null,null,null,null,null,null,null,null,null,null,null,null,null,null,null,null,null,null,null,null,null,null,null,null,null,null,null,null,null,null,null,null,null,null,1]
[62,"MA","CLI",3,5,"01","ユニット型ＣＣ総論　",null,1,1,1,1,1,1,1,1,1,1,1,1,1,1,1,1,null,null,null,null,null,null,null,null,null,null,null,null,null,null,null,null,null,null,null,null,null,null,null,null,null,null,null,null,null,null,null,null,null,null,null,null,null,null,null,null,null,null,null,null,null,null,null,null,null,null,null,null,null,null,null,null,null,null,null,null,null,null,null,null,null,null,null,null,null,null,null,null,null,null,null,null,null,null,null,null,null,null,null,null,null,null,null,null,null,null,null,null,null,null,null,null,null,null,null,null,null,null,null,null,null,null,null,null,null,null,null,null,null,null,null,null,null,null,null,null,null,null,null,1,1,1,1,1,1,1,1,1,1,1,1,1,1,1,1,1,1,1,1,1,1,1,1,1,1,1,1,1,1,1,1,1,1,1,1,1,1,1,1,1,1,1,1,1,1,1,1,1,1,1,1,1,1,1,1,1,1,1,1,1,1,1,1,1,1,1,1,1,1,1,1,1,1,1,1,1,1,1,1,1,1,1,1,1,1,1,1,1,1,1,1,1,1,1,1,1,1,1,1,1,1,1,1,1]
[63,"MA","CLI",3,5,"01","循環器内科　","循環器内科学"]
[64,"MA","CLI",3,5,"01","心臓血管外科　","心臓血管外科学"]
[65,"MA","CLI",3,5,"01","呼吸器内科　　","呼吸器内科学"]
[66,"MA","CLI",3,5,"01","呼吸器外科　","呼吸器外科学",null,null,null,null,null,null,null,null,null,null,null,null,null,null,null,null,null,null,null,null,null,null,null,null,null,null,null,null,null,null,null,null,null,null,null,null,null,null,null,null,null,null,null,null,null,null,null,null,null,null,null,null,null,null,null,null,null,null,null,null,null,null,null,null,null,null,null,null,null,null,null,null,null,null,null,null,null,null,null,null,null,null,null,null,null,null,null,null,null,null,null,null,null,null,null,null,null,null,null,null,null,null,null,null,null,null,null,null,null,null,null,null,null,null,null,null,null,null,null,null,null,null,null,null,null,null,null,null,null,null,null,null,null,null,null,null,null,null,null,null,null,null,null,null,null,null,null,null,null,null,null,null,null,null,null,null,null,null,null,null,null,null,null,null,null,null,null,null,null,null,null,null,null,null,null,null,null,null,null,null,null,null,null,null,1,null,null,null,null,null,null,null,null,null,null,null,null,null,null,null,null,null,null,null,null,null,null,null,null,null,null,null,null,null,null,null,null,null,null,null,null,null,null,null,null,null,null,null,null,null,null,null,null,null,null,null,1,null,1,null,1]
[67,"MA","CLI",3,5,"01","感染症内科　","臨床感染制御学",null,null,null,null,null,null,null,null,null,null,null,null,null,null,null,null,null,null,null,null,null,null,null,null,null,null,null,null,null,null,null,null,null,null,null,null,null,null,null,null,null,null,null,null,null,null,null,null,null,null,null,null,null,null,null,null,null,null,null,null,null,null,null,null,null,null,null,null,null,null,null,null,null,null,null,null,null,null,null,null,null,null,null,null,null,null,null,null,null,null,null,null,null,null,null,null,null,null,null,null,null,null,null,null,null,null,null,null,null,null,null,null,null,null,1,1,1,1,null,null,null,null,null,null,null,null,null,null,null,null,null,null,null,null,null,null,null,null,null,null,null,null,null,null,null,null,null,null,null,null,null,null,null,null,null,null,null,null,null,null,null,null,null,null,null,null,null,null,null,null,null,null,null,null,null,null,null,null,null,null,null,null,null,null,null,null,null,null,null,null,null,null,null,null,null,null,null,null,null,null,null,null,null,null,null,null,null,null,null,null,null,null,null,null,null,null,null,null,null,null,null,null,null,null,null,null,null,null,null,null,null,null,null,null,null,null,null,null,null,null,1]
[68,"MA","CLI",3,5,"01","総合診療センター　　　","総合医学教育学"]
[69,"MA","CLI",3,5,"01","消化器内科　　","消化器内科学",null,null,null,null,null,1,null,null,1,null,null,null,null,null,1,1]
[70,"MA","CLI",3,5,"01","肝胆膵内科　　","肝胆膵病態内科学",null,null,null,null,null,null,null,null,null,null,null,null,null,null,null,null,null,null,null,null,null,null,null,null,null,null,null,null,null,null,null,null,null,null,null,null,null,null,null,null,null,null,null,null,null,null,null,null,null,null,null,null,null,null,null,null,null,null,null,null,null,null,null,null,null,null,null,null,null,null,null,null,null,null,null,null,null,null,null,null,null,null,null,null,null,null,null,null,null,null,null,null,null,null,null,null,null,null,null,null,null,null,null,null,null,null,null,null,null,null,null,null,null,null,null,null,null,null,null,null,null,null,null,null,null,null,null,null,null,null,null,null,null,null,null,null,null,null,null,null,null,null,null,null,null,null,null,null,null,null,null,null,null,null,null,null,null,null,null,null,null,null,null,null,null,null,null,null,null,null,null,null,null,null,null,null,null,null,null,null,null,null,null,null,null,null,null,null,null,null,null,null,null,null,null,null,null,null,null,null,null,null,null,null,null,null,null,null,null,null,null,null,null,null,null,null,null,null,null,null,null,null,null,null,null,null,null,null,null,null,null,null,null,null,null,null,null,null,null,null,1]
[71,"MA","CLI",3,5,"01","消化器外科　　","消化器外科学"]
[72,"MA","CLI",3,5,"01","肝胆膵外科　","肝胆膵外科学"]
[73,"MA","CLI",3,5,"01","放射線科・放射線治療科、核医学　","放射線診断学・IVR学",null,null,null,null,null,null,null,null,null,null,null,null,null,null,null,null,null,null,null,null,null,null,null,null,null,null,null,null,null,null,null,null,null,null,null,null,null,null,null,null,null,null,null,null,null,null,null,null,null,null,null,null,null,null,null,null,null,null,null,null,null,null,null,null,null,null,null,null,null,null,null,null,null,null,null,null,null,null,null,null,null,null,null,null,null,null,null,null,null,null,null,null,null,null,null,null,null,null,null,null,null,null,null,null,null,null,null,null,null,null,null,null,null,null,null,null,null,null,null,null,null,null,null,null,null,null,null,null,null,1,1,1,1,null,null,null,null,null,null,null,null,null,null,null,null,null,null,null,null,null,null,null,null,null,null,null,null,null,null,null,null,null,null,null,null,null,null,null,null,null,null,null,null,null,null,null,null,null,null,null,1]
[74,"MA","CLI",3,5,"01","医療安全学","医療安全管理学",null,null,null,null,null,null,null,null,1,1,1,1]
[75,"MA","CLI",3,5,"01","代謝内分泌・腎臓内科　　","代謝内分泌病態内科学",null,null,null,null,null,null,null,null,null,null,null,null,null,null,null,null,null,null,null,null,null,null,null,null,null,null,null,null,null,null,null,null,null,null,null,null,null,null,null,null,null,null,null,null,null,null,null,null,null,null,null,null,null,null,null,null,null,null,null,null,null,null,null,null,null,null,null,null,null,null,null,null,null,null,null,null,null,null,null,null,null,1,1,1,1,null,null,null,null,null,null,null,null,null,null,null,null,null,1,1,1,1,null,null,null,null,null,null,null,null,null,null,null,null,null,null,null,null,null,null,null,null,null,null,null,null,null,null,null,null,null,null,null,null,null,null,null,1,null,null,1,null,1,null,null,null,null,null,1,1,null,null,null,null,null,null,null,null,null,null,null,null,null,null,1,null,1,1,null,null,null,null,null,null,null,null,1,1,1,1,null,null,1,1,null,null,1,null,null,null,null,null,1,1,1,1,1,1,1]
[76,"MA","CLI",3,5,"01","乳腺・内分泌外科　","乳腺・内分泌外科学",null,null,null,null,null,null,null,null,null,null,null,null,null,null,null,null,null,null,null,null,null,null,null,null,null,null,null,null,null,null,null,null,null,null,null,null,null,null,null,null,null,null,null,null,null,null,null,null,null,null,null,null,null,null,null,null,null,null,null,null,null,null,null,null,null,null,null,null,null,null,null,null,null,null,null,null,null,null,null,null,null,null,null,null,null,null,null,null,null,null,null,null,null,null,null,null,null,null,null,null,null,null,null,null,null,null,null,null,null,null,null,null,null,null,null,null,null,null,1,1,1,1,1,null,null,null,null,null,null,null,null,null,null,null,null,null,null,null,null,null,null,null,null,null,null,null,null,null,null,null,null,null,null,null,null,null,null,null,null,null,null,null,null,null,null,null,null,null,null,null,null,null,null,null,null,null,null,null,null,null,null,null,null,null,null,null,null,null,null,null,null,null,null,null,null,null,null,1,1,null,null,null,null,null,null,null,null,null,null,null,null,null,null,null,null,null,null,null,null,null,null,null,null,null,null,null,null,null,null,null,null,null,null,null,null,null,null,null,1,null,1]
[77,"MA","CLI",3,5,"01","泌尿器科　","泌尿器病態学"]
[78,"MA","CLI",3,5,"01","皮膚科　","皮膚病態学",null,null,null,null,null,null,null,null,null,null,null,null,null,null,null,null,null,null,null,null,null,null,null,null,null,null,null,null,null,null,null,null,null,null,null,null,null,null,null,null,null,null,null,null,null,null,null,null,null,null,null,null,null,null,null,null,null,null,null,null,null,1,1,1,1]
[79,"MA","CLI",3,5,"01","形成外科　","形成外科学"]
[80,"MA","CLI",3,5,"01","整形外科　　","整形外科学",null,null,null,null,null,null,null,null,null,null,null,null,null,null,null,null,null,null,null,null,null,null,null,null,null,null,null,null,null,null,null,null,null,null,null,null,null,null,null,null,null,null,null,null,null,null,null,null,null,null,null,null,null,null,null,null,null,null,null,null,null,null,null,null,null,1,1,1,1,null,null,null,null,null,null,null,null,null,null,null,null,null,null,null,null,null,null,null,null,null,null,null,null,null,null,null,null,null,null,null,null,null,null,null,null,null,null,null,null,null,null,null,null,null,null,null,null,null,null,null,null,null,null,null,null,null,null,null,null,null,null,null,null,null,null,null,null,null,null,null,null,null,null,null,null,null,null,null,null,null,null,null,null,null,null,null,null,null,null,null,null,null,null,null,null,null,null,null,null,null,null,null,1,1,1,null,1,1,null,null,null,null,null,null,1,null,null,null,null,1]
[81,"MA","CLI",3,5,"01","神経精神科　","神経精神医学",null,null,null,null,null,null,null,null,null,null,null,null,null,null,null,null,null,null,null,null,null,null,null,null,null,null,null,null,null,null,null,null,null,null,null,null,null,null,null,null,null,null,null,null,null,null,null,null,null,null,null,null,null,null,null,null,null,null,null,null,null,null,null,null,null,null,null,null,null,null,null,null,null,null,null,null,null,null,null,null,null,null,null,null,null,null,null,null,null,null,null,null,null,null,null,null,null,null,null,null,null,null,null,null,null,null,null,null,null,null,1,1,1]
[82,"MA","CLI",3,5,"01","神経内科　","神経内科学",null,null,null,null,null,null,null,null,null,null,null,null,null,null,null,null,null,null,null,null,null,null,null,null,null,null,null,null,null,null,null,null,null,null,null,null,null,null,null,null,null,null,null,null,null,null,null,null,null,null,null,null,null,null,null,null,null,1,1,1,1,null,null,null,null,null,null,null,null,null,null,null,null,null,null,null,null,null,null,null,null,null,null,null,null,null,null,null,null,null,null,null,null,null,null,null,null,null,null,null,null,null,null,null,null,null,null,null,null,null,null,null,null,null,null,null,null,null,null,null,null,null,null,null,null,null,null,null,null,null,null,null,null,null,null,null,null,1,null,null,null,null,null,null,null,1,1,1,null,null,null,null,null,null,null,null,null,null,null,null,null,null,null,null,null,null,null,null,null,null,1,1,1,null,null,null,null,null,null,null,null,null,null,null,null,null,null,null,null,null,null,null,null,null,null,null,null,null,null,null,null,null,null,null,null,1,1,1,null,null,null,null,null,null,null,null,null,null,null,null,null,null,null,null,null,null,null,null,null,null,1,1,1]
[83,"MA","CLI",3,5,"01","眼科　","視覚病態学"]
[84,"MA","CLI",3,5,"01","耳鼻咽喉科　","耳鼻咽喉病態学",null,null,null,null,null,null,null,null,null,null,null,null,null,null,null,null,null,null,null,null,null,null,null,null,null,null,null,null,null,null,null,null,null,null,null,null,null,null,null,null,null,null,null,null,null,null,null,null,null,null,null,null,null,null,null,null,null,null,null,null,null,null,null,null,null,null,null,null,null,null,null,null,null,null,null,null,null,null,null,null,null,null,null,null,null,null,null,null,null,null,null,null,null,null,null,null,null,null,null,null,null,null,null,null,null,null,1,1,1,1,null,null,null,null,null,null,null,null,1,1,1,1,1,1,1,1,null,null,null,null,null,null,null,null,null,null,null,null,null,null,null,null,null,null,null,null,null,1,null,null,null,null,null,1,null,null,null,1,null,null,null,null,null,null,null,null,null,null,null,null,null,null,null,null,null,null,null,null,null,null,null,null,null,null,1,null,null,null,null,null,null,null,1,1,1,1,1,1]
[85,"MA","CLI",3,5,"01","脳神経外科　","脳神経外科学"]
[86,"MA","CLI",3,5,"01","産婦人科　","女性生涯医学・女性病態医学",null,null,null,null,null,null,null,null,null,null,null,null,null,null,null,null,null,null,null,null,null,null,null,null,null,null,null,null,null,null,null,null,null,null,null,null,null,null,null,null,null,null,null,null,null,null,null,null,null,null,null,null,null,null,null,null,null,null,null,null,null,null,null,null,null,null,null,null,null,null,null,null,null,null,null,null,null,null,null,null,null,null,null,null,null,1,1,1,1,1,1,1,1,1,null,null,null,null,null,null,null,null,null,null,null,null,null,null,null,null,null,null,null,null,null,null,null,null,null,null,null,null,null,null,null,null,null,null,null,null,null,null,null,1,null,null,null,null,null,null,null,null,null,null,null,null,null,null,null,null,null,null,null,null,null,null,null,null,null,null,null,null,null,null,null,null,null,null,null,null,null,null,null,null,null,null,null,null,null,null,null,null,null,null,null,null,null,null,null,null,null,null,null,null,null,null,null,null,null,null,null,null,null,null,null,null,null,null,null,null,null,null,null,null,null,null,null,null,null,null,null,null,null,null,null,null,null,null,1]
[87,"MA","CLI",3,5,"01","小児科　","発達小児医学",null,null,null,null,null,null,null,null,null,null,null,null,null,null,null,null,null,null,null,null,null,null,null,null,null,null,null,null,null,null,null,null,null,null,null,null,null,null,null,null,null,null,null,null,null,null,null,null,null,null,null,null,null,null,null,null,null,null,null,null,null,null,null,null,null,null,null,null,null,null,null,null,null,null,null,null,null,null,null,null,null,null,null,null,null,null,null,null,null,null,null,null,null,null,null,null,null,null,null,null,null,null,null,null,null,null,null,null,null,null,null,null,null,null,null,null,null,null,null,null,null,null,null,null,null,null,null,null,null,null,null,null,null,null,null,null,null,null,null,null,null,null,null,null,null,null,null,null,null,null,null,null,null,null,null,null,null,null,null,null,null,null,null,null,null,null,null,null,null,null,null,null,null,null,null,null,null,null,null,null,null,null,null,null,null,null,null,null,null,null,null,null,1,1,1,1,1,1,1,null,null,null,null,null,null,null,null,null,null,null,null,null,null,null,null,null,null,null,null,null,null,null,null,null,null,null,null,null,null,null,null,null,null,null,null,null,null,null,null,null,1]
[88,"MA","CLI",3,5,"01","小児外科　　","小児外科学"]
[89,"MA","CLI",3,5,"01","血液内科　","血液腫瘍制御学",null,null,null,null,null,null,null,null,null,null,null,null,null,null,null,null,null,null,null,null,null,null,null,null,null,null,null,null,null,null,null,null,null,null,null,null,null,null,null,null,null,null,null,null,null,null,null,null,null,null,null,null,null,1,1,1,1]
[90,"MA","CLI",3,5,"01","麻酔科　","麻酔科学",null,null,null,null,null,null,null,null,null,null,null,null,null,null,null,null,null,null,null,null,null,null,null,null,null,null,null,null,null,null,null,null,null,null,null,null,null,null,1,null,null,null,null,null,null,null,null,null,null,null,null,null,null,null,null,null,null,null,null,null,null,null,null,null,null,null,null,null,null,null,null,null,null,null,null,null,null,null,null,null,null,null,null,null,null,null,null,null,null,null,null,null,null,null,null,null,null,null,null,null,null,null,null,null,null,null,null,null,null,null,null,null,null,null,null,null,null,null,null,null,null,null,null,null,null,null,null,null,null,null,null,null,null,null,null,null,null,null,null,null,null,null,null,null,null,null,null,null,null,null,null,null,null,null,null,null,null,null,null,null,null,null,null,null,null,null,null,null,null,null,null,null,null,null,null,null,null,null,null,null,null,null,null,1,1,1,1,1,1,null,null,1,null,null,null,null,null,1,null,null,null,null,null,null,null,null,null,null,null,null,null,null,null,null,null,null,null,null,null,null,null,null,null,null,null,null,null,null,null,null,null,null,null,null,null,null,1,1,1]
[91,"MA","CLI",3,5,"01","救命救急科　","救急医学",null,null,null,null,null,null,null,null,null,null,null,null,null,null,null,null,null,null,null,null,null,null,null,null,null,null,null,null,null,null,null,null,null,null,null,null,null,null,null,null,null,null,null,null,null,null,null,null,null,null,null,null,null,null,null,null,null,null,null,null,null,null,null,null,null,null,null,null,null,null,null,null,null,null,null,null,null,null,null,null,null,null,null,null,null,null,null,null,null,null,null,null,null,null,null,null,null,null,null,null,null,null,null,null,null,null,null,null,null,null,null,null,null,null,null,null,null,null,null,null,null,null,null,null,null,null,null,null,null,null,null,null,null,null,null,null,null,null,null,null,null,null,null,null,null,null,null,null,null,null,null,null,null,null,null,null,null,null,null,null,null,null,null,null,null,null,null,null,null,null,null,null,null,null,null,null,null,null,null,null,null,null,null,null,null,null,null,null,null,null,null,null,null,null,null,null,null,null,null,null,null,null,null,null,null,null,null,null,null,null,null,null,null,null,null,null,null,null,null,null,null,null,null,null,null,null,null,null,null,null,null,null,null,null,null,null,null,null,null,null,1]
[92,"MA","CLI",3,6,"01","選択型ＣＣ　"]
[93,null,null,null,6,null,"保健所・保健福祉センター実習","公衆衛生学　他",null,null,null,null,null,null,null,null,1,null,null,null,null,null,1,1,null,null,null,null,null,null,null,null,null,null,null,1,1]
[null,null,null,null,null,null,null,null,{"$f":"SUM(I10:I102)","v":7},5,5,4,10,6,7,9,14,10,5,6,4,4,12,9,4,6,6,2,3,3,1,6,1,2,1,4,5,4,1,2,{"$f":"SUM(AO10:AO102)","v":2},5,1,3,4,6,4,6,5,6,2,2,1,2,2,2,4,2,1,1,1,3,3,2,4,5,2,3,5,3,2,2,{"$f":"SUM(BU10:BU102)","v":4},4,2,2,5,2,1,1,3,2,1,1,4,3,1,1,4,4,2,2,5,4,2,2,5,2,2,2,4,2,1,1,{"$f":"SUM(DA10:DA102)","v":1},3,3,2,2,5,3,1,1,3,4,2,2,4,2,2,4,2,2,2,2,2,4,3,3,3,5,2,2,4,1,1,{"$f":"SUM(EG10:EG102)","v":3},3,3,2,3,3,2,2,1,3,1,4,5,4,5,4,4,5,5,6,5,5,4,4,4,5,4,4,4,5,4,4,{"$f":"SUM(FM10:FM102)","v":4},4,4,4,5,4,5,5,4,4,5,5,6,5,5,4,7,9,8,8,6,5,6,10,9,6,7,6,6,6,5,6,{"$f":"SUM(GS10:GS102)","v":6},6,6,6,6,8,5,2,2,2,2,2,2,3,3,3,2,2,2,2,2,2,2,2,2,2,2,2,2,2,2,2,{"$f":"SUM(HY10:HY102)","v":2},2,2,2,3,2,3,3,3,2,2,2,5,4,6,4,8,2,3,3]

{"sheet":"備考","index":1,"n_rows":244,"n_cols":6,"rows_kept":244,"cut":false,"hidden":false,"merged":[[0,0,2,0],[3,0,5,0]]}
["分野","BAS","Basic medicine",null,null,"A-1-1)"]
[null,"SOC","Social medicine",null,null,"A-1-2)"]
[null,"CLI","Clinical medicine",null,null,"A-1-3)"]
["学習段階",1,"基礎医学",null,null,"A-2-1)"]
[null,2,"社会医学",null,null,"A-2-2)"]
[null,3,"臨床医学",null,null,"A-3-1)"]
[null,null,null,null,null,"A-4-1)"]
["(※)2年生の1月に授業開始となる",null,null,null,null,"A-4-2)"]
[null,null,null,null,null,"A-5-1)"]
[null,null,null,null,null,"A-6-1)"]
[null,null,null,null,null,"A-6-2)"]
[null,null,null,null,null,"A-6-3)"]
[null,null,null,null,null,"A-7-1)"]
[null,null,null,null,null,"A-7-2)"]
[null,null,null,null,null,"A-8-1)"]
[null,null,null,null,null,"A-9-1)"]
[null,null,null,null,null,"B-1-1)"]
[null,null,null,null,null,"B-1-2)"]
[null,null,null,null,null,"B-1-3)"]
[null,null,null,null,null,"B-1-4)"]
[null,null,null,null,null,"B-1-5)"]
[null,null,null,null,null,"B-1-6)"]
[null,null,null,null,null,"B-1-7)"]
[null,null,null,null,null,"B-1-8)"]
[null,null,null,null,null,"B-1-9)"]
[null,null,null,null,null,"B-2-1)"]
[null,null,null,null,null,"B-2-2)"]
[null,null,null,null,null,"B-3-1)"]
[null,null,null,null,null,"B-4-1)"]
[null,null,null,null,null,"C-1-1)"]
[null,null,null,null,null,"C-1-2)"]
[null,null,null,null,null,"C-2-1)"]
[null,null,null,null,null,"C-2-2)"]
[null,null,null,null,null,"C-2-3)"]
[null,null,null,null,null,"C-2-4)"]
[null,null,null,null,null,"C-2-5)"]
[null,null,null,null,null,"C-3-1)"]
[null,null,null,null,null,"C-3-2)"]
[null,null,null,null,null,"C-3-3)"]
[null,null,null,null,null,"C-4-1)"]
[null,null,null,null,null,"C-4-2)"]
[null,null,null,null,null,"C-4-3)"]
[null,null,null,null,null,"C-4-4)"]
[null,null,null,null,null,"C-4-5)"]
[null,null,null,null,null,"C-4-6)"]
[null,null,null,null,null,"C-5-1)"]
[null,null,null,null,null,"C-5-2)"]
[null,null,null,null,null,"C-5-3)"]
[null,null,null,null,null,"C-5-4)"]
[null,null,null,null,null,"C-5-5)"]
[null,null,null,null,null,"C-5-6)"]
[null,null,null,null,null,"C-5-7)"]
[null,null,null,null,null,"C-5-8)"]
[null,null,null,null,null,"D-1-1)"]
[null,null,null,null,null,"D-1-2)"]
[null,null,null,null,null,"D-1-3)"]
[null,null,null,null,null,"D-1-4)"]
[null,null,null,null,null,"D-2-1)"]
[null,null,null,null,null,"D-2-2)"]
[null,null,null,null,null,"D-2-3)"]
[null,null,null,null,null,"D-2-4)"]
[null,null,null,null,null,"D-3-1)"]
[null,null,null,null,null,"D-3-2)"]
[null,null,null,null,null,"D-3-3)"]
[null,null,null,null,null,"D-3-4)"]
[null,null,null,null,null,"D-4-1)"]
[null,null,null,null,null,"D-4-2)"]
[null,null,null,null,null,"D-4-3)"]
[null,null,null,null,null,"D-4-4)"]
[null,null,null,null,null,"D-5-1)"]
[null,null,null,null,null,"D-5-2)"]
[null,null,null,null,null,"D-5-3)"]
[null,null,null,null,null,"D-5-4)"]
[null,null,null,null,null,"D-6-1)"]
[null,null,null,null,null,"D-6-2)"]
[null,null,null,null,null,"D-6-3)"]
[null,null,null,null,null,"D-6-4)"]
[null,null,null,null,null,"D-7-1)"]
[null,null,null,null,null,"D-7-2)"]
[null,null,null,null,null,"D-7-3)"]
[null,null,null,null,null,"D-7-4)"]
[null,null,null,null,null,"D-8-1)"]
[null,null,null,null,null,"D-8-2)"]
[null,null,null,null,null,"D-8-3)"]
[null,null,null,null,null,"D-8-4)"]
[null,null,null,null,null,"D-9-1)"]
[null,null,null,null,null,"D-9-2)"]
[null,null,null,null,null,"D-9-3)"]
[null,null,null,null,null,"D-9-4)"]
[null,null,null,null,null,"D-10-1)"]
[null,null,null,null,null,"D-10-2)"]
[null,null,null,null,null,"D-10-3)"]
[null,null,null,null,null,"D-10-4)"]
[null,null,null,null,null,"D-10-5)"]
[null,null,null,null,null,"D-11-1)"]
[null,null,null,null,null,"D-11-2)"]
[null,null,null,null,null,"D-11-3)"]
[null,null,null,null,null,"D-11-4)"]
[null,null,null,null,null,"D-12-1)"]
[null,null,null,null,null,"D-12-2)"]
[null,null,null,null,null,"D-12-3)"]
[null,null,null,null,null,"D-12-4)"]
[null,null,null,null,null,"D-13-1)"]
[null,null,null,null,null,"D-13-2)"]
[null,null,null,null,null,"D-13-3)"]
[null,null,null,null,null,"D-13-4)"]
[null,null,null,null,null,"D-14-1)"]
[null,null,null,null,null,"D-14-2)"]
[null,null,null,null,null,"D-14-3)"]
[null,null,null,null,null,"D-14-4)"]
[null,null,null,null,null,"D-15-1)"]
[null,null,null,null,null,"D-15-2)"]
[null,null,null,null,null,"D-15-3)"]
[null,null,null,null,null,"E-1-1)"]
[null,null,null,null,null,"E-2-1)"]
[null,null,null,null,null,"E-2-2)"]
[null,null,null,null,null,"E-2-3)"]
[null,null,null,null,null,"E-2-4)"]
[null,null,null,null,null,"E-3-1)"]
[null,null,null,null,null,"E-3-2)"]
[null,null,null,null,null,"E-3-3)"]
[null,null,null,null,null,"E-3-4)"]
[null,null,null,null,null,"E-3-5)"]
[null,null,null,null,null,"E-4-1)"]
[null,null,null,null,null,"E-4-2)"]
[null,null,null,null,null,"E-4-3)"]
[null,null,null,null,null,"E-5-1)"]
[null,null,null,null,null,"E-5-2)"]
[null,null,null,null,null,"E-5-3)"]
[null,null,null,null,null,"E-6-1)"]
[null,null,null,null,null,"E-6-2)"]
[null,null,null,null,null,"E-6-3)"]
[null,null,null,null,null,"E-6-4)"]
[null,null,null,null,null,"E-7-1)"]
[null,null,null,null,null,"E-7-2)"]
[null,null,null,null,null,"E-7-3)"]
[null,null,null,null,null,"E-7-4)"]
[null,null,null,null,null,"E-8-1)"]
[null,null,null,null,null,"E-9-1)"]
[null,null,null,null,null,"F-1-1)"]
[null,null,null,null,null,"F-1-2)"]
[null,null,null,null,null,"F-1-3)"]
[null,null,null,null,null,"F-1-4)"]
[null,null,null,null,null,"F-1-5)"]
[null,null,null,null,null,"F-1-6)"]
[null,null,null,null,null,"F-1-7)"]
[null,null,null,null,null,"F-1-8)"]
[null,null,null,null,null,"F-1-9)"]
[null,null,null,null,null,"F-1-10)"]
[null,null,null,null,null,"F-1-11)"]
[null,null,null,null,null,"F-1-12)"]
[null,null,null,null,null,"F-1-13)"]
[null,null,null,null,null,"F-1-14)"]
[null,null,null,null,null,"F-1-15)"]
[null,null,null,null,null,"F-1-16)"]
[null,null,null,null,null,"F-1-17)"]
[null,null,null,null,null,"F-1-18)"]
[null,null,null,null,null,"F-1-19)"]
[null,null,null,null,null,"F-1-20)"]
[null,null,null,null,null,"F-1-21)"]
[null,null,null,null,null,"F-1-22)"]
[null,null,null,null,null,"F-1-23)"]
[null,null,null,null,null,"F-1-24)"]
[null,null,null,null,null,"F-1-25)"]
[null,null,null,null,null,"F-1-26)"]
[null,null,null,null,null,"F-1-27)"]
[null,null,null,null,null,"F-1-28)"]
[null,null,null,null,null,"F-1-29)"]
[null,null,null,null,null,"F-1-30)"]
[null,null,null,null,null,"F-1-31)"]
[null,null,null,null,null,"F-1-32)"]
[null,null,null,null,null,"F-1-33)"]
[null,null,null,null,null,"F-1-34)"]
[null,null,null,null,null,"F-1-35)"]
[null,null,null,null,null,"F-1-36)"]
[null,null,null,null,null,"F-1-37)"]
[null,null,null,null,null,"F-2-1)"]
[null,null,null,null,null,"F-2-2)"]
[null,null,null,null,null,"F-2-3)"]
[null,null,null,null,null,"F-2-4)"]
[null,null,null,null,null,"F-2-5)"]
[null,null,null,null,null,"F-2-6)"]
[null,null,null,null,null,"F-2-7)"]
[null,null,null,null,null,"F-2-8)"]
[null,null,null,null,null,"F-2-9)"]
[null,null,null,null,null,"F-2-10)"]
[null,null,null,null,null,"F-2-11)"]
[null,null,null,null,null,"F-2-12)"]
[null,null,null,null,null,"F-2-13)"]
[null,null,null,null,null,"F-2-14)"]
[null,null,null,null,null,"F-2-15)"]
[null,null,null,null,null,"F-2-16)"]
[null,null,null,null,null,"F-3-1)"]
[null,null,null,null,null,"F-3-2)"]
[null,null,null,null,null,"F-3-3)"]
[null,null,null,null,null,"F-3-4)"]
[null,null,null,null,null,"F-3-5)"]
[null,null,null,null,null,"F-3-6)"]
[null,null,null,null,null,"G-1-1)"]
[null,null,null,null,null,"G-2-1)"]
[null,null,null,null,null,"G-2-2)"]
[null,null,null,null,null,"G-2-3)"]
[null,null,null,null,null,"G-2-4)"]
[null,null,null,null,null,"G-2-5)"]
[null,null,null,null,null,"G-2-6)"]
[null,null,null,null,null,"G-2-7)"]
[null,null,null,null,null,"G-2-8)"]
[null,null,null,null,null,"G-2-9)"]
[null,null,null,null,null,"G-2-10)"]
[null,null,null,null,null,"G-2-11)"]
[null,null,null,null,null,"G-2-12)"]
[null,null,null,null,null,"G-2-13)"]
[null,null,null,null,null,"G-2-14)"]
[null,null,null,null,null,"G-2-15)"]
[null,null,null,null,null,"G-2-16)"]
[null,null,null,null,null,"G-2-17)"]
[null,null,null,null,null,"G-2-18)"]
[null,null,null,null,null,"G-2-19)"]
[null,null,null,null,null,"G-2-20)"]
[null,null,null,null,null,"G-2-21)"]
[null,null,null,null,null,"G-2-22)"]
[null,null,null,null,null,"G-2-23)"]
[null,null,null,null,null,"G-2-24)"]
[null,null,null,null,null,"G-2-25)"]
[null,null,null,null,null,"G-2-26)"]
[null,null,null,null,null,"G-2-27)"]
[null,null,null,null,null,"G-2-28)"]
[null,null,null,null,null,"G-2-29)"]
[null,null,null,null,null,"G-2-30)"]
[null,null,null,null,null,"G-2-31)"]
[null,null,null,null,null,"G-2-32)"]
[null,null,null,null,null,"G-2-33)"]
[null,null,null,null,null,"G-2-34)"]
[null,null,null,null,null,"G-2-35)"]
[null,null,null,null,null,"G-2-36)"]
[null,null,null,null,null,"G-2-37)"]
[null,null,null,null,null,"G-3-1)"]
[null,null,null,null,null,"G-3-2)"]
[null,null,null,null,null,"G-3-3)"]
[null,null,null,null,null,"G-3-4)"]
[null,null,null,null,null,"G-4-1)"]
[null,null,null,null,null,"G-4-2)"]
[null,null,null,null,null,"G-4-3)"]
[null,null,null,null,null,"G-4-4)"]